bitfinex-derivatives/quotes_SOLF0:USTF0_20250419
["timestamp","ask_amount","ask_price","bid_price","bid_amount"]
[1745065257114,5.09832154,138.93,138.91,0.05095351]
[1745065257415,5.15139037,138.92,138.91,0.05095351]
[1745065258317,5.15139037,138.92,138.91,7.25005351]
[1745065263524,5.15139037,138.92,138.91,0.05095351]
[1745065264625,5.15491355,138.92,138.91,0.05095351]
[1745065264927,18.12571832,138.92,138.91,0.05095351]
[1745065265126,10.92681832,138.92,138.87,5.77190477]
[1745065265427,5.10184472,138.91,138.87,5.77190477]
[1745065265725,5.10184472,138.9,138.89,7.2004]
[1745065266326,5.10059147,138.9,138.89,7.2004]
[1745065267426,5.10059147,138.9,138.88,7.2007]
[1745065267628,5.10059147,138.89,138.88,7.2007]
[1745065271927,5.10059147,138.89,138.87,12.97310477]
[1745065272130,5.10059147,138.88,138.86,25.24]
[1745065272330,5.10059147,138.87,138.86,25.24]
[1745065273328,12.30239147,138.87,138.84,7.2028]
[1745065273521,5.10059147,138.86,138.84,7.2028]
[1745065273721,5.10059147,138.85,138.84,7.2028]
[1745065274129,13.02160185,138.88,138.85,7.2021]
[1745065274326,5.09896752,138.87,138.85,7.2021]
[1745065274527,5.09896752,138.86,138.85,7.2021]
[1745065276233,5.09896752,138.86,138.83,7.2035]
[1745065276441,5.09896752,138.85,138.83,7.2035]
[1745065276627,5.09896752,138.84,138.83,7.2035]
[1745065278038,5.09896752,138.84,138.83,12.97540477]
[1745065280830,0.0520204,138.87,138.86,7.202]
[1745065290446,0.0520204,138.87,138.85,32.4423]
[1745065291854,7.2538204,138.87,138.85,25.24]
[1745065292047,0.0520204,138.87,138.85,25.24]
[1745065292249,5.77190477,138.86,138.82,25.24]
[1745065292449,12.97420477,138.86,138.83,7.2034]
[1745065292749,4.96919215,138.85,138.83,7.2034]
[1745065292953,4.96919215,138.84,138.83,7.2034]
[1745065298255,10.74109692,138.84,138.73,14.4173]
[1745065298451,5.77190477,138.82,138.77,5.77190477]
[1745065298651,4.96919215,138.81,138.77,5.77190477]
[1745065298852,4.96919215,138.8,138.78,7.2058]
[1745065299051,4.96919215,138.79,138.78,7.2058]
[1745065301753,4.96919215,138.79,138.77,7.2064]
[1745065301946,4.96919215,138.78,138.77,7.2064]
[1745065302755,13.02597091,138.81,138.78,7.206]
[1745065302950,4.96209842,138.8,138.78,7.206]
[1745065303151,4.96209842,138.79,138.78,7.206]
[1745065306259,0.04916614,138.81,138.8,7.2051]
[1745065306458,0.04916614,138.81,138.8,12.97700477]
[1745065306758,6.614e-05,138.81,138.8,12.97700477]
[1745065315160,3.893,138.88,138.8,5.77190477]
[1745065315360,3.893,138.88,138.84,5.77190477]
[1745065315561,3.893,138.88,138.84,31.01190477]
[1745065316259,3.893,138.88,138.86,7.2016]
[1745065318260,4.86553876,138.87,138.86,7.25041437]
[1745065321967,4.86553876,138.87,138.86,0.04881437]
[1745065323064,4.86553876,138.87,138.82,5.77190477]
[1745065323265,4.86553876,138.86,138.82,5.77190477]
[1745065323464,4.86553876,138.85,138.84,7.2027]
[1745065327766,7.2021,138.86,138.84,7.2027]
[1745065327967,12.06481288,138.85,138.83,7.25199721]
[1745065328163,4.86231288,138.84,138.83,7.25199721]
[1745065329867,4.8633447,138.84,138.83,7.25199721]
[1745065330462,0.04893586,138.85,138.84,7.2031]
[1745065330668,603.12840477,138.92,138.84,25.24]
[1745065330871,27.1365,138.92,138.87,5.77190477]
[1745065331369,27.1365,138.92,138.88,7.2006]
[1745065331568,27.1365,138.92,138.87,5.77190477]
[1745065331970,27.1365,138.92,138.87,31.01190477]
[1745065333367,27.1365,138.92,138.9,7.1999]
[1745065338977,27.18442888,138.92,138.9,7.1999]
[1745065342578,6.64844048,138.91,138.9,7.1999]
[1745065343281,4.61584048,138.91,138.9,7.1999]
[1745065344279,0.04792888,138.92,138.91,7.1994]
[1745065344481,4.66395935,138.92,138.91,7.1994]
[1745065346479,5.935e-05,138.92,138.91,7.1994]
[1745065346680,38.20800477,138.98,138.96,7.1968]
[1745065346882,1.9498,138.99,138.94,5.77190477]
[1745065347183,68.14519367,139.0,138.96,5.77190477]
[1745065347484,68.14519367,139.0,138.98,5.77190477]
[1745065348785,68.14519367,139.0,138.99,7.1953]
[1745065349487,12.96520477,139.03,139.0,7.1946]
[1745065350183,13.01351946,139.03,139.0,7.24591547]
[1745065350384,13.01351946,139.03,139.0,0.05131547]
[1745065352083,7.24161469,139.03,139.0,0.05131547]
[1745065352289,13.01351946,139.03,139.0,0.05131547]
[1745065355793,7.1937,139.02,139.0,0.05131547]
[1745065356095,5.77190477,139.01,139.0,0.05131547]
[1745065356298,5.77190477,138.99,138.94,30.99190477]
[1745065356595,5.77190477,138.99,138.94,25.22]
[1745065357298,12.96720477,138.99,138.96,7.1965]
[1745065359290,12.96720477,138.99,138.95,7.1972]
[1745065359798,12.96720477,138.99,138.94,25.22]
[1745065360301,0.0511871,138.98,138.95,5.77190477]
[1745065360495,0.0511871,138.98,138.96,7.1964]
[1745065361299,0.0511871,138.98,138.97,7.1963]
[1745065365501,0.0511871,138.98,138.96,7.1966]
[1745065366403,0.0511871,138.98,138.97,7.1963]
[1745065367800,0.0511871,138.98,138.95,5.82061577]
[1745065368002,0.0511871,138.98,138.95,0.048711]
[1745065368703,7.2472871,138.98,138.95,7.245811]
[1745065369808,4.48610991,138.97,138.95,0.048711]
[1745065370007,5.77190477,138.97,138.95,0.048711]
[1745065370202,0.0511871,138.98,138.95,0.048711]
[1745065370506,4.48771063,138.97,138.95,7.245911]
[1745065370804,7.2472871,138.98,138.95,7.245911]
[1745065371006,4.48770793,138.97,138.95,7.245911]
[1745065371204,7.2472871,138.98,138.95,7.245911]
[1745065371503,4.48944736,138.97,138.95,7.245911]
[1745065371808,7.1963,138.97,138.95,7.245911]
[1745065372506,7.1963,138.97,138.95,0.048711]
[1745065373210,4.49359167,138.96,138.95,0.048711]
[1745065379114,11.69039167,138.96,138.95,0.048711]
[1745065380917,11.70049412,138.96,138.95,0.048711]
[1745065381115,4.50369412,138.96,138.95,0.048711]
[1745065381819,11.70049412,138.96,138.95,0.048711]
[1745065382315,4.50369412,138.96,138.95,0.048711]
[1745065384321,11.70049412,138.96,138.95,0.048711]
[1745065385623,4.50369412,138.96,138.95,0.048711]
[1745065387225,4.50369412,138.96,138.95,7.246111]
[1745065390924,4.50369412,138.96,138.95,0.048711]
[1745065391327,4.50369412,138.96,138.92,25.22]
[1745065391525,10.27559889,138.95,138.92,25.22]
[1745065391722,4.50369412,138.94,138.93,7.1979]
[1745065392429,4.50369412,138.94,138.93,12.96980477]
[1745065393232,0.05171988,138.95,138.94,7.1979]
[1745065393527,4.57414089,138.95,138.94,7.1979]
[1745065397029,4.57448281,138.95,138.94,7.1979]
[1745065411439,4.58384269,138.95,138.94,7.1979]
[1745065411645,4.5838431,138.95,138.94,7.1979]
[1745065412046,0.05171988,138.95,138.94,7.1979]
[1745065413042,4.95649883,138.95,138.94,7.1979]
[1745065417045,4.95668961,138.95,138.94,7.1979]
[1745065418852,4.95668467,138.95,138.94,7.1979]
[1745065419051,10.72858944,138.95,138.94,7.1979]
[1745065420251,4.95668467,138.95,138.93,25.27184224]
[1745065420551,4.90496479,138.94,138.93,25.27184224]
[1745065421251,4.90496479,138.94,138.93,32.47024224]
[1745065423853,4.90496479,138.94,138.93,0.05184224]
[1745065424055,12.10286479,138.94,138.93,0.05184224]
[1745065424853,12.10286479,138.94,138.93,0.00413629]
[1745065428365,4.90496479,138.94,138.93,0.00413629]
[1745065429768,4.90496479,138.94,138.93,7.20253629]
[1745065433265,0.05171988,138.95,138.94,7.1979]
[1745065433462,4.93543333,138.95,138.94,7.1979]
[1745065434566,4.93543333,138.95,138.93,0.00413629]
[1745065434762,10.65561822,138.94,138.93,0.00413629]
[1745065436765,17.85351822,138.94,138.93,0.00413629]
[1745065437873,17.85351822,138.94,138.91,7.1993]
[1745065438071,4.88371345,138.93,138.91,7.1993]
[1745065438368,4.88371345,138.92,138.91,7.1993]
[1745065438869,4.88264552,138.92,138.91,7.1993]
[1745065439971,4.88264552,138.92,138.9,7.1997]
[1745065440268,4.88264552,138.91,138.89,25.22]
[1745065440462,4.88197731,138.9,138.89,25.22]
[1745065440960,4.88197731,138.9,138.89,7.2003]
[1745065471191,0.0458786,138.91,138.9,7.1999]
[1745065471391,4.92875479,138.91,138.9,7.1999]
[1745065480097,0.0458786,138.91,138.9,7.1999]
[1745065495114,0.0458786,138.91,138.89,0.0484317]
[1745065495311,5.81778337,138.91,138.89,0.0484317]
[1745065496315,5.81778337,138.91,138.9,7.1999]
[1745065510029,10.70731704,138.91,138.9,7.1999]
[1745065522936,10.70994363,138.91,138.9,7.1999]
[1745065527139,4.93803886,138.91,138.9,7.1999]
[1745065532039,0.0458786,138.91,138.9,7.1999]
[1745065532343,4.93428759,138.91,138.9,7.1999]
[1745065536539,4.93428759,138.91,138.9,12.97180477]
[1745065536843,8.759e-05,138.91,138.9,38.17180477]
[1745065538950,8.759e-05,138.91,138.9,12.97180477]
[1745065539442,0.04885501,138.92,138.91,7.1994]
[1745065544252,5.501e-05,138.92,138.91,7.1994]
[1745065544751,34.2506,138.98,138.96,7.1965]
[1745065545754,27.0548,138.98,138.96,7.1965]
[1745065546254,5.77190477,138.97,138.96,0.04918798]
[1745065546457,5.77190477,138.97,138.93,25.2]
[1745065547354,12.96850477,138.97,138.94,7.1976]
[1745065547552,12.96850477,138.97,138.93,25.2]
[1745065548155,12.96850477,138.97,138.95,7.1973]
[1745065548454,34.29976802,138.98,138.93,30.97190477]
[1745065548654,4.75631819,138.97,138.93,30.97190477]
[1745065548855,4.75631819,138.96,138.93,30.97190477]
[1745065549153,4.75631819,138.95,138.93,30.97190477]
[1745065549349,4.75631819,138.94,138.93,30.97190477]
[1745065550451,4.75631819,138.94,138.93,38.17030477]
[1745065552057,0.04655481,138.95,138.94,7.1979]
[1745065552251,4.80074139,138.95,138.94,7.1979]
[1745065553857,4.79964948,138.95,138.94,7.1979]
[1745065559761,10.57155425,138.95,138.93,32.3981]
[1745065559961,4.75309467,138.94,138.92,0.04811617]
[1745065560161,4.75309467,138.93,138.92,0.04811617]
[1745065560362,4.75309467,138.93,138.92,7.24681617]
[1745065562562,4.75380335,138.93,138.92,7.24681617]
[1745065562766,10.52570812,138.93,138.92,0.04811617]
[1745065564261,10.52570812,138.93,138.92,7.24701617]
[1745065567162,4.75380335,138.93,138.92,7.24701617]
[1745065569669,4.75715815,138.93,138.92,7.24701617]
[1745065570772,4.75715815,138.93,138.92,0.04811617]
[1745065571176,4.75715815,138.93,138.92,7.24701617]
[1745065584392,4.75838783,138.93,138.92,7.24701617]
[1745065585989,7.1979,138.94,138.92,7.24701617]
[1745065586190,4.75847087,138.93,138.92,7.24701617]
[1745065591495,12.96980477,138.94,138.92,7.24701617]
[1745065591788,4.75914642,138.93,138.92,7.24701617]
[1745065602497,4.75914642,138.93,138.92,32.44701617]
[1745065602701,0.04655481,138.95,138.94,7.1979]
[1745065614617,4.69320558,138.95,138.94,7.1979]
[1745065625230,0.04655481,138.95,138.94,7.1979]
[1745065628327,5.81845958,138.95,138.94,7.1979]
[1745065628534,5.81845958,138.95,138.93,7.1981]
[1745065630935,13.01605958,138.95,138.93,7.1981]
[1745065631335,5.81845958,138.95,138.93,7.1981]
[1745065631535,5.81845958,138.95,138.94,7.1979]
[1745065636732,0.04655481,138.95,138.94,7.1979]
[1745065639238,5.481e-05,138.95,138.94,7.1979]
[1745065652155,5.77190477,139.03,139.0,7.1948]
[1745065652855,12.96530477,139.03,139.01,7.1942]
[1745065653154,12.96530477,139.03,138.98,5.77190477]
[1745065653552,13.01473486,139.03,139.01,0.04639475]
[1745065654854,4.99146868,139.02,139.01,0.00291411]
[1745065655152,4.99146868,139.02,139.0,7.1945]
[1745065655351,4.99146868,139.01,139.0,7.1945]
[1745065656650,4.98186509,139.01,139.0,7.1945]
[1745065660756,68.14519367,139.08,139.0,30.93190477]
[1745065660954,68.14519367,139.08,139.06,5.77190477]
[1745065661157,68.14519367,139.08,139.06,30.93190477]
[1745065661562,68.14519367,139.08,139.07,7.1911]
[1745065665869,0.04917364,139.09,139.08,7.1906]
[1745065666069,0.04917364,139.09,139.08,12.96250477]
[1745065668170,0.04917364,139.09,139.07,7.1911]
[1745065678777,0.04917364,139.09,139.08,7.1906]
[1745065690377,2.0281,139.12,139.1,7.1894]
[1745065690777,2.0281,139.12,139.07,5.81749576]
[1745065691583,9.217,139.12,139.09,7.1897]
[1745065695086,14.98890477,139.12,139.09,7.1897]
[1745065695587,7.1892,139.11,139.09,7.1897]
[1745065696084,14.98890477,139.12,139.09,7.1897]
[1745065696983,7.1892,139.11,139.09,7.1897]
[1745065698885,5.77190477,139.14,139.11,7.1891]
[1745065699584,12.95970477,139.14,139.11,7.1891]
[1745065699787,12.95970477,139.14,139.12,7.1885]
[1745065700077,12.95970477,139.14,139.11,0.04614087]
[1745065700283,7.1882,139.13,139.11,0.04614087]
[1745065700484,5.77190477,139.12,139.11,0.04614087]
[1745065700684,12.96050477,139.12,139.11,0.04614087]
[1745065712287,5.77190477,139.12,139.07,25.14]
[1745065712588,5.77190477,139.1,139.07,32.3309]
[1745065712789,7.1905,139.09,139.07,25.14]
[1745065712991,7.1905,139.09,139.07,32.3311]
[1745065714194,5.77190477,139.08,139.03,5.77190477]
[1745065714391,5.77190477,139.08,139.04,25.14]
[1745065714889,5.77190477,139.08,139.06,7.1914]
[1745065715292,5.77190477,139.08,139.01,25.14]
[1745065715483,12.96390477,139.06,139.01,25.14]
[1745065715792,5.77190477,139.06,139.02,5.77190477]
[1745065716090,5.77190477,139.06,139.05,7.1922]
[1745065720796,5.77190477,139.08,139.04,25.14]
[1745065720996,5.77190477,139.1,139.04,30.91190477]
[1745065721496,5.77190477,139.1,139.08,7.1905]
[1745065722593,5.77190477,139.1,139.09,7.1901]
[1745065722897,5.77190477,139.1,139.06,5.77190477]
[1745065723299,5.77190477,139.1,139.08,7.1902]
[1745065726100,12.96170477,139.1,139.08,7.1902]
[1745065726299,5.77190477,139.1,139.07,7.191]
[1745065727399,7.1903,139.09,139.07,7.191]
[1745065730500,5.77190477,139.1,139.08,7.1903]
[1745065730700,5.77190477,139.11,139.07,25.14]
[1745065731398,12.96110477,139.11,139.08,7.1902]
[1745065731702,12.96110477,139.11,139.07,25.14]
[1745065732095,5.77190477,139.11,139.07,25.14]
[1745065732800,7.1897,139.1,139.07,32.3311]
[1745065733103,5.77190477,139.11,139.07,32.3311]
[1745065734307,7.1897,139.1,139.07,32.3311]
[1745065736810,12.96120477,139.11,139.08,7.1905]
[1745065737107,12.96120477,139.11,139.07,25.14]
[1745065737409,12.96120477,139.11,139.08,7.1904]
[1745065741513,7.1896,139.1,139.08,7.1904]
[1745065742814,25.14,139.13,139.09,7.1899]
[1745065743008,5.77190477,139.11,139.09,7.1899]
[1745065743209,5.77190477,139.11,139.07,25.14]
[1745065743508,12.96120477,139.11,139.08,7.1904]
[1745065749411,5.77190477,139.11,139.07,7.1909]
[1745065749615,5.77190477,139.09,139.06,25.14]
[1745065750114,5.77190477,139.09,139.07,7.191]
[1745065750915,5.77190477,139.09,139.08,7.1906]
[1745065751114,12.96130477,139.11,139.08,7.1906]
[1745065751314,12.96130477,139.11,139.06,25.14]
[1745065751811,12.96130477,139.11,139.08,7.1901]
[1745065754018,7.1897,139.1,139.08,7.1901]
[1745065754216,5.77190477,139.11,139.08,7.1901]
[1745065754716,12.96130477,139.11,139.08,7.1901]
[1745065755418,5.77190477,139.11,139.08,7.1901]
[1745065756018,12.96140477,139.11,139.08,7.1901]
[1745065761422,5.77190477,139.09,139.07,7.191]
[1745065762023,12.96210477,139.09,139.07,7.191]
[1745065762319,5.77190477,139.09,139.07,7.191]
[1745065762622,5.77190477,139.09,139.06,32.3314]
[1745065763324,12.96220477,139.09,139.06,32.3314]
[1745065764023,5.77190477,139.1,139.08,7.1906]
[1745065764223,5.77190477,139.1,139.06,30.91190477]
[1745065764625,5.77190477,139.1,139.09,7.1901]
[1745065765025,5.77190477,139.11,139.09,7.1901]
[1745065770626,12.96100477,139.11,139.09,7.1901]
[1745065774034,13.0124425,139.11,139.09,7.1901]
[1745065774833,5.8233425,139.11,139.09,7.1901]
[1745065775333,5.8233425,139.11,139.1,7.1896]
[1745065781639,5.8233425,139.11,139.09,7.1899]
[1745065782037,13.0125425,139.11,139.09,7.1899]
[1745065782837,5.8233425,139.11,139.07,25.14]
[1745065783140,5.77190477,139.09,139.07,25.14]
[1745065783839,5.77190477,139.09,139.07,32.3309]
[1745065784239,5.77190477,139.09,139.07,25.14]
[1745065784934,5.77190477,139.09,139.07,32.3309]
[1745065785638,5.77190477,139.09,139.08,7.1906]
[1745065787743,5.77190477,139.09,139.07,32.3309]
[1745065789744,5.77190477,139.1,139.08,7.1906]
[1745065790041,0.05143773,139.11,139.09,5.77190477]
[1745065790543,0.05143773,139.11,139.1,32.3296]
[1745065791445,5.8233425,139.11,139.1,25.14]
[1745065791650,5.8233425,139.11,139.07,25.14]
[1745065792146,5.8233425,139.11,139.08,7.1904]
[1745065793850,5.8233425,139.11,139.09,7.1901]
[1745065794037,5.8233425,139.11,139.07,25.14]
[1745065794243,0.05143773,139.11,139.07,30.91190477]
[1745065794536,0.05143773,139.11,139.1,7.1896]
[1745065802148,3.773e-05,139.11,139.1,32.3296]
[1745065802446,87.87953145,139.18,139.1,32.32]
[1745065802752,5.77190477,139.17,139.12,5.77190477]
[1745065802949,87.87953145,139.19,139.16,7.1864]
[1745065803149,5.77190477,139.17,139.16,7.1864]
[1745065804153,5.77190477,139.17,139.15,7.2382463]
[1745065804551,5.77190477,139.17,139.15,0.0513463]
[1745065805454,5.81962062,139.17,139.15,0.0513463]
[1745065806761,0.04771585,139.17,139.15,0.0513463]
[1745065810060,5.81962062,139.17,139.15,0.0513463]
[1745065810759,13.00582062,139.17,139.15,0.0513463]
[1745065811658,7.1865,139.16,139.15,0.0513463]
[1745065811858,5.81962062,139.17,139.1,25.3]
[1745065812059,5.77190477,139.14,139.1,25.3]
[1745065812859,12.95980477,139.14,139.11,7.189]
[1745065813153,5.77190477,139.14,139.1,25.3]
[1745065813359,12.95970477,139.14,139.1,32.4891]
[1745065814455,12.95970477,139.14,139.11,7.189]
[1745065817361,5.77190477,139.14,139.1,32.4894]
[1745065819264,7.1884,139.13,139.1,32.4894]
[1745065822663,12.95970477,139.14,139.11,7.1891]
[1745065823267,7.1881,139.13,139.1,32.4894]
[1745065828069,7.24111405,139.13,139.1,32.54115777]
[1745065835080,7.1886,139.12,139.1,32.54115777]
[1745065836279,7.1886,139.12,139.1,7.24115777]
[1745065839479,7.1886,139.12,139.1,0.05175777]
[1745065841584,7.1886,139.12,139.1,7.24125777]
[1745065844080,0.05301405,139.13,139.1,7.24125777]
[1745065845385,5.77190477,139.12,139.1,0.05175777]
[1745065845886,12.96070477,139.12,139.1,0.05175777]
[1745065847984,5.77190477,139.12,139.1,7.24135777]
[1745065848190,7.24111405,139.13,139.1,7.24135777]
[1745065849983,7.1887,139.12,139.1,7.24135777]
[1745065850188,7.1887,139.12,139.1,0.05175777]
[1745065852493,7.1891,139.11,139.1,0.05175777]
[1745065852791,5.77190477,139.1,139.05,30.93190477]
[1745065852992,7.1905,139.09,139.06,7.1914]
[1745065853290,5.77190477,139.1,139.06,7.1914]
[1745065853589,7.1905,139.09,139.06,7.1914]
[1745065853890,7.24581367,139.09,139.06,7.1914]
[1745065858593,7.1908,139.08,139.05,38.12380477]
[1745065859793,7.1908,139.08,139.05,7.1919]
[1745065860495,7.1908,139.08,139.06,7.1916]
[1745065861797,7.24561367,139.09,139.06,7.1916]
[1745065861993,0.05531367,139.09,139.07,7.1908]
[1745065862199,0.05531367,139.09,139.05,5.77190477]
[1745065862699,0.05531367,139.09,139.06,7.1916]
[1745065863299,5.77190477,139.08,139.05,7.1921]
[1745065863600,5.77190477,139.08,139.04,30.93190477]
[1745065863796,5.77190477,139.08,139.06,7.1914]
[1745065866103,12.96260477,139.08,139.06,7.1914]
[1745065866299,12.96260477,139.08,139.05,7.192]
[1745065866901,7.1913,139.07,139.05,7.192]
[1745065867502,12.96280477,139.08,139.05,7.192]
[1745065869104,5.77190477,139.08,139.06,7.1915]
[1745065869302,7.24561367,139.09,139.04,30.93190477]
[1745065869604,7.24561367,139.09,139.06,7.1914]
[1745065870298,7.1908,139.08,139.06,7.1914]
[1745065870503,12.96270477,139.08,139.05,7.192]
[1745065871505,12.96270477,139.08,139.04,30.93190477]
[1745065871907,12.96270477,139.08,139.05,7.1919]
[1745065879119,5.77190477,139.08,139.04,32.3526]
[1745065879822,7.1915,139.07,139.04,32.3526]
[1745065881719,12.96370477,139.06,139.03,7.193]
[1745065882024,3.83991367,139.09,139.04,5.77190477]
[1745065882221,16.74690477,139.09,139.04,5.77190477]
[1745065882720,0.04871176,139.08,139.05,7.1919]
[1745065883221,0.04871176,139.08,139.04,5.77190477]
[1745065883923,0.04871176,139.08,139.05,7.1921]
[1745065884918,0.04871176,139.08,139.05,0.05152298]
[1745065885121,0.04871176,139.08,139.06,7.1916]
[1745065885623,7.23941176,139.08,139.05,7.24342298]
[1745065885821,5.77190477,139.07,139.05,0.05152298]
[1745065886123,7.1917,139.06,139.05,0.05152298]
[1745065886822,30.91190477,139.07,138.93,361.0]
[1745065887025,5.77190477,138.99,138.94,25.14]
[1745065887423,12.96750477,138.99,138.95,7.1969]
[1745065888117,0.0490853,138.98,138.95,7.1969]
[1745065888323,0.0490853,138.98,138.94,25.14]
[1745065889015,0.0490853,138.98,138.96,7.1966]
[1745065891032,5.77190477,138.97,138.94,25.14]
[1745065891524,12.96830477,138.97,138.94,25.14]
[1745065891726,5.77190477,138.97,138.95,7.1971]
[1745065891929,0.0490853,138.98,138.94,25.14]
[1745065892135,0.0490853,138.98,138.94,25.19222982]
[1745065893727,0.0490853,138.98,138.97,7.1963]
[1745065894930,0.0490853,138.98,138.94,25.19222982]
[1745065895224,5.77190477,138.97,138.94,0.05222982]
[1745065895631,7.197,138.96,138.94,0.05222982]
[1745065895930,5.77190477,138.97,138.94,0.05222982]
[1745065896132,7.1972,138.96,138.94,0.05222982]
[1745065898532,12.96850477,138.97,138.94,7.25002982]
[1745065898734,5.77190477,138.97,138.94,7.25002982]
[1745065899232,12.96850477,138.97,138.94,7.25002982]
[1745065900234,0.0490853,138.98,138.95,5.77190477]
[1745065900625,0.0490853,138.98,138.97,5.77190477]
[1745065900835,0.0490853,138.98,138.97,12.96820477]
[1745065902528,0.0490853,138.98,138.97,7.1963]
[1745065907740,0.0490853,138.98,138.95,5.77190477]
[1745065908043,0.0490853,138.98,138.94,25.21222982]
[1745065908243,5.77190477,138.97,138.94,0.05222982]
[1745065908446,5.77190477,138.97,138.94,7.24982982]
[1745065908942,12.96830477,138.97,138.94,7.24982982]
[1745065910546,7.1969,138.96,138.94,7.24982982]
[1745065910746,5.77190477,138.95,138.94,0.05222982]
[1745065912252,7.1965,138.97,138.94,7.25012982]
[1745065912447,5.77190477,138.97,138.94,0.05222982]
[1745065913155,5.77190477,138.97,138.95,7.1973]
[1745065914244,12.96820477,138.97,138.95,7.1973]
[1745065914847,12.96820477,138.97,138.94,7.24982982]
[1745065915047,12.96820477,138.97,138.94,0.05222982]
[1745065916050,5.77190477,138.97,138.95,7.1974]
[1745065917150,13.01709007,138.98,138.96,7.1968]
[1745065917450,0.0490853,138.98,138.95,5.77190477]
[1745065918047,0.0490853,138.98,138.97,7.1963]
[1745065924655,68.14519367,139.05,138.97,5.77190477]
[1745065924848,68.14519367,139.05,139.01,5.77190477]
[1745065925055,73.91709844,139.06,139.01,5.77190477]
[1745065925558,81.10889844,139.06,139.03,7.1929]
[1745065926057,0.05139095,139.05,139.03,7.1929]
[1745065929252,0.05139095,139.05,139.04,7.1927]
[1745065936867,0.05139095,139.05,139.01,30.93190477]
[1745065937264,7.24379095,139.05,139.01,30.93190477]
[1745065940370,7.1929,139.04,139.01,30.93190477]
[1745065940667,5.77190477,139.04,138.99,5.77190477]
[1745065940868,5.77190477,139.04,138.99,30.91190477]
[1745065941064,5.77190477,139.04,138.99,5.77190477]
[1745065941365,7.1933,139.03,138.99,5.77190477]
[1745065941662,5.77190477,139.04,138.99,5.77190477]
[1745065941867,30.91190477,139.04,138.98,25.14]
[1745065942067,5.77190477,139.02,138.98,25.14]
[1745065942368,7.1943,139.01,138.98,25.14]
[1745065942767,7.1943,139.01,138.97,5.77190477]
[1745065942967,7.24522742,139.01,138.97,5.77190477]
[1745065943270,7.1948,139.0,138.97,5.77190477]
[1745065943568,7.1948,139.0,138.96,5.77190477]
[1745065944869,0.05092742,139.01,138.98,5.77190477]
[1745065947071,0.05092742,139.01,138.98,5.81997257]
[1745065950373,0.05092742,139.01,139.0,5.77190477]
[1745065953472,0.05092742,139.01,138.99,25.14]
[1745065954672,0.05092742,139.01,138.98,0.0480678]
[1745065958980,7.24522742,139.01,138.98,0.0480678]
[1745065959178,0.05092742,139.01,138.98,0.0480678]
[1745065959380,0.05092742,139.01,138.98,5.81997257]
[1745065969182,0.05092742,139.01,138.99,25.14]
[1745065980989,0.05092742,139.01,139.0,7.1948]
[1745065990101,0.05092742,139.01,138.99,25.14]
[1745065992106,0.05092742,139.01,138.98,5.81997257]
[1745065993502,7.24522742,139.01,138.98,5.81997257]
[1745065993703,0.05092742,139.01,138.98,5.81997257]
[1745065994104,0.05092742,139.01,138.98,30.95997257]
[1745065995105,87.87953145,139.08,139.0,5.77190477]
[1745065995305,87.87953145,139.08,139.06,5.77190477]
[1745065995497,87.87953145,139.08,139.06,12.96310477]
[1745065996200,87.87953145,139.08,139.07,7.1911]
[1745065997400,7.1896,139.1,139.07,7.1911]
[1745065997704,5.77190477,139.09,139.06,7.1914]
[1745065998204,12.96210477,139.09,139.06,7.1914]
[1745065998404,5.77190477,139.09,139.05,7.192]
[1745065998798,7.74720477,139.09,139.05,7.192]
[1745065998998,7.191,139.08,139.05,7.192]
[1745066004610,7.1912,139.07,139.04,38.10430477]
[1745066006509,7.1912,139.07,139.04,12.96430477]
[1745066009408,5.77190477,139.05,139.0,5.77190477]
[1745066010815,12.96430477,139.05,139.02,7.1934]
[1745066011810,13.01700558,139.05,139.02,7.1934]
[1745066014315,5.82460558,139.05,139.03,7.1932]
[1745066015114,13.01690558,139.05,139.02,7.1935]
[1745066017017,5.82460558,139.05,139.03,7.1928]
[1745066020713,5.82460558,139.05,139.0,5.77190477]
[1745066021119,5.77190477,139.03,138.98,5.77190477]
[1745066021515,7.194,139.02,138.98,5.77190477]
[1745066022025,7.1943,139.01,138.97,5.77190477]
[1745066024022,7.1939,139.02,138.97,5.77190477]
[1745066025121,5.77190477,139.01,138.97,5.77190477]
[1745066025725,0.04717308,139.0,138.97,5.77190477]
[1745066026624,0.04717308,139.0,138.97,5.82206229]
[1745066028018,7.24197308,139.0,138.97,0.05015752]
[1745066028325,5.77190477,138.99,138.97,0.05015752]